Cogmind - Beta 16 @@@ ROGUE MODE // 2025.10.23 @ 10:40:27 Player: woegarden Result: Destroyed by Y-45 Defender with Beam Rifle Performance ------------- Evolutions (1) 500 Regions Visited (2) 400 Robots Destroyed (12) 60 Value Destroyed (79) 79 Prototype IDs (0) 0 Alien Tech Used (0) 0 Bonus (0) 0 TOTAL SCORE: 1039 Bonus ------- None Cogmind --------- Core Integrity 0/400 Matter 300/300 Energy 100/100 System Corruption 2% Temperature Cool (9) Movement Core (50) Location -9/Materials Parts ------- > --- POWER (1) -------- (None) > --- PROPULSION (2) --- (None) > --- UTILITY (4) ------ (None) > --- WEAPON (2) ------- (None) > --- INVENTORY (5) ---- Large Storage Unit Small Battery (100) High-capacity Matter Pod (132) Weight Redist. System Improved Terrain Scan Processor Peak State ------------ > --- POWER ------------ Ion Engine > --- PROPULSION ------- Compact Wheel Compact Wheel > --- UTILITY ---------- Large Storage Unit Structural Scanner Terrain Scanner Improved Terrain Scanner > --- WEAPON ----------- Medium Laser Light Assault Rifle > --- INVENTORY -------- Ion Engine Light Treads Small Battery High-capacity Matter Pod Weight Redist. System Seismic Detector Medium Laser [Rating: 11] Favorites ----------- Power Light Ion Engine Engine Light Ion Engine Propulsion Aluminum Leg Leg Aluminum Leg Wheel Compact Wheel Utility Improved Terrain Scanner Device Improved Terrain Scanner Storage Small Storage Unit Weapon Medium Laser Energy Gun Medium Laser Ballistic Gun Light Assault Rifle Build | -11 -10 -9 ------- Run | Yrd Mat Mat Slots Evolved 2 | . . 2 Power . | . . . Propulsion . | . . . Utility 2 | . . 2 Weapon . | . . . Parts Attached 12 | 1 5 6 Power 2 | . 1 1 Engine 2 | . 1 1 Core . | . . . Reactor . | . . . Propulsion 3 | . 2 1 Treads . | . . . Leg . | . . . Wheel 3 | . 2 1 Hover . | . . . Flight . | . . . Utility 6 | 1 2 3 Device 4 | 1 . 3 Storage 2 | . 2 . Processor . | . . . Hackware . | . . . Protection . | . . . Artifact . | . . . Weapon 1 | . . 1 Energy Gun 1 | . . 1 Energy Cannon . | . . . Ballistic Gun . | . . . Ballistic Cannon . | . . . Launcher . | . . . Special Weapon . | . . . Impact Weapon . | . . . Slashing Weapon . | . . . Piercing Weapon . | . . . Special Melee Weapon . | . . . Unidentified Prototypes . | . . . Parts Lost 10 | . . 10 Power 2 | . . 2 Propulsion 2 | . . 2 Utility 4 | . . 4 Weapon 2 | . . 2 Highest Loss Streak 9 | . . 9 To Critical Strikes 1 | . . 1 Average Backups 6 | 6 7 5 Power . | 1 1 . Propulsion 2 | 4 2 . Utility 3 | . 3 4 Weapon . | 1 1 . Tool/Special . | . . . Unused Backups 16 | . 9 7 Power 2 | . 2 . Propulsion 5 | . 4 1 Utility 7 | . 3 4 Weapon 2 | . . 2 Tool/Special . | . . . Average Slot Usage (%) 91 | . 98 81 Engine 12 | . 14 10 Leg 10 | . 16 . Wheel 13 | . 11 18 Device 21 | . 12 36 Storage 9 | . 14 . Energy Gun 12 | . 14 9 Ballistic Gun 10 | . 14 5 Peak Build Rating 11 | 9 10 11 Average Rating 8 | 8 8 8 On Entrance 8 | 6 9 10 Avg Prop Armor Cover (%) . | . . . Naked Turns 15 | . . 15 Heaviest Build 29 | 12 29 12 Greatest Support 32 | 20 32 32 Greatest Overweight (x) 1 | . . 1 Average Overweight (x) . | . . . Largest Inventory Capacity 15 | 8 15 15 Average Capacity 8 | 8 9 5 Most Carried 10 | 8 10 8 Average Carried 6 | 6 7 5 Final Capacity 15 | 8 15 5 Final Carried 9 | 8 9 5 Class Distribution -------------------- 90% | Mutant 4% | Scavenger-Mutant 4% | Scientist-Mutant Dominant Class ---------------- Mutant | -10/Materials Mutant | -9/Materials Resources | -11 -10 -9 ----------- Run | Yrd Mat Mat Matter Collected 421 | 281 140 . Remotely . | . . . Salvage Created 344 | 198 129 17 Parts 29 | 19 9 1 Haulers Intercepted 2 | . 2 . Recyclers Shooed 1 | . 1 . Parts Field Recycled . | . . . Retrieved Matter . | . . . Parts Self-Destructed . | . . . Prevented . | . . . Parts Restored . | . . . Kills | -11 -10 -9 ------- Run | Yrd Mat Mat Combat Hostiles Destroyed 4 | . 3 1 Melee 1 | . 1 . Guns 3 | . 2 1 Classes Destroyed 5 | 3 2 . Worker 1 | 1 . . Tunneler 4 | 4 . . Hauler 2 | . 2 . Recycler 1 | 1 . . Swarmer 4 | . 3 1 Best Kill Streak 4 | 3 4 1 Combat Bots Only 3 | . 3 1 Max Kills in Single Turn 1 | 1 1 1 Gunslinging . | . . . Exploded . | . . . Melee 1 | . 1 . Uniques/NPCs Destroyed . | . . . Combat | -11 -10 -9 -------- Run | Yrd Mat Mat Hostile Shots Fired 160 | . 61 99 Missed 44 | . 15 29 Hits 116 | . 46 70 Projectile 116 | . 46 70 Critical Strikes 2 | . . 2 Damage Taken 1125 | . 411 714 Core 477 | . 77 400 Absorbed by Shields . | . . . Regen/Repaired (Parts) 8 | . 8 . Core Remaining (%) 84 | 100 69 . Volleys Fired 42 | 21 16 5 Largest 2 | 2 2 1 Hottest 70 | 70 70 50 Shots Fired 79 | 42 32 5 Gun 79 | 42 32 5 Cannon . | . . . Launcher . | . . . Special . | . . . Kinetic 37 | 21 16 . Thermal 42 | 21 16 5 Explosive . | . . . Electromagnetic . | . . . Robot Hit Streak 6 | 5 6 3 Robot Miss Streak 5 | 4 5 1 Penetration Max . | . . . Secondary Targets 1 | . 1 . Max Gunslinging Chain 1 | . 1 . Shots Hit Robots 43 | 22 17 4 Core Hits 18 | 8 7 3 Critical Kills . | . . . Critical Parts Destroyed . | . . . Critical Strikes 3 | 1 2 . Burn 3 | 1 2 . Melee Attacks . | . . . Impact . | . . . Slashing . | . . . Piercing . | . . . Sneak Attacks . | . . . Combat Hostiles . | . . . Follow-up Attacks . | . . . Damage Inflicted 540 | 220 201 119 Guns 463 | 220 181 62 Cannons . | . . . Explosions . | . . . Melee . | . . . Ramming 77 | . 20 57 Kinetic 169 | 97 72 . Thermal 294 | 123 109 62 Explosive . | . . . Electromagnetic . | . . . Impact . | . . . Slashing . | . . . Piercing . | . . . Highest Corruption 2 | . 1 2 Average Corruption 1 | . 1 1 Corruption Purged . | . . . Corruption Blocked . | . . . Effects 1 | . . 1 Energy Discharges 1 | . . 1 Overload Shots . | . . . Overflow Damage . | . . . Projectiles . | . . . Explosions . | . . . Melee . | . . . Knockbacks . | . . . Impact . | . . . Kinetic . | . . . Secondary . | . . . Self-Inflicted Damage 26 | . . 26 Shots . | . . . Rammed 21 | . . 21 Targets Rammed 31 | . 10 21 Kicked 10 | . 10 . Crushed . | . . . Highest Temperature 116 | 100 116 21 Average Temperature 37 | 39 40 11 Received Heat Transfer 174 | . 84 90 Siege Activations . | . . . Martial Activations . | . . . Shielding Activations . | . . . Robots Disrupted . | . . . Combat Hostiles . | . . . Robots Corrupted . | . . . Combat Hostiles . | . . . Parts Fried . | . . . Impact Corruptions . | . . . Robots Melted . | . . . Combat Hostiles . | . . . Parts Melted 1 | 1 . . Heat Transferred 1110 | 444 481 185 Parts Sabotaged . | . . . Parts Stolen . | . . . Parts Stripped . | . . . Power Chain Reactions . | . . . Alert | -11 -10 -9 ------- Run | Yrd Mat Mat Maximum Alert Level . | . . . Low Security (%) 100 | 100 100 100 Level 1 . | . . . Level 2 . | . . . Level 3 . | . . . Level 4 . | . . . Level 5 . | . . . High Security . | . . . Max Security . | . . . Peak Influence 67 | 5 67 10 Initial 9 | . . 9 Average 9 | 2 17 1 Influence Increases 168 | 30 114 24 Destroy 0b10 Robot/C 80 | . 60 20 Destroy 0b10 Robot/NC 40 | 30 10 . Destroy Leader 14 | . 14 . Successful Hack 4 | . . 4 Lose Combat Pursuer 30 | . 30 . Influence Decreases 168 | 30 90 48 Entered New Map 15 | . . 15 Time Decay 133 | 30 90 13 Lost Part 20 | . . 20 Squads Dispatched 1 | . . 1 Investigation . | . . . Extermination . | . . . Reinforcement 1 | . . 1 Assault . | . . . Garrison . | . . . Intercept . | . . . Searches Triggered . | . . . Construction Impeded . | . . . Haulers Reinforced . | . . . Active Scanning Responses . | . . . Cargo Convoy Interrupts . | . . . Stealth | -11 -10 -9 --------- Run | Yrd Mat Mat Distress Signals 2 | . 2 . Communications Jammed . | . . . Distress Signals . | . . . Times Spotted 20 | . 10 10 Peak Tracking Total 9 | . 5 9 Tactical Retreats 1 | . 1 . Traps | -11 -10 -9 ------- Run | Yrd Mat Mat Traps Triggered 1 | . 1 . Indirectly . | . . . Trap Hack Attempts . | . . . Triggered . | . . . Disarmed . | . . . Reprogrammed . | . . . Reused . | . . . Traps Extracted . | . . . Installed . | . . . Triggered . | . . . Machines | -11 -10 -9 ---------- Run | Yrd Mat Mat Machines Disabled . | . . . Max in Single Turn . | . . . Machines Repaired . | . . . Machines Dismantled . | . . . Machines Sabotaged . | . . . Overloaded Fab Kills . | . . . Hacking | -11 -10 -9 --------- Run | Yrd Mat Mat Machines Accessed 2 | . 1 1 Terminals . | . . . Fabricators . | . . . Repair Stations 1 | . 1 . Recycling Units . | . . . Scanalyzers 1 | . . 1 Garrison Access . | . . . Total Hacks 10 | . 4 6 Successful 10 | . 4 6 Failed . | . . . Catastrophic . | . . . Database Lockouts . | . . . Manual . | . . . Terminals . | . . . Fabricators . | . . . Repair Stations 4 | . 4 . Recycling Units . | . . . Scanalyzers 6 | . . 6 Garrison Access . | . . . Terminal Hacks . | . . . Fabricator Hacks . | . . . Repair Station Hacks 4 | . 4 . Scan Component 2 | . 2 . Repair 2 | . 2 . Recycling Unit Hacks . | . . . Scanalyzer 6 | . . 6 Insert Component 1 | . . 1 Analyze 1 | . . 1 Retrieve Study 4 | . . 4 Garrison Access Hacks . | . . . Unauthorized Hacks . | . . . Terminals . | . . . Fabricators . | . . . Repair Stations . | . . . Recycling Units . | . . . Scanalyzers . | . . . Garrison Access . | . . . Data Cores Recovered . | . . . Used . | . . . Hacking Detections 1 | . 1 . Full Trace Events . | . . . Feedback Events . | . . . Feedback Blocked . | . . . Robot Schematics Acquired . | . . . Robots Built . | . . . Authchips . | . . . Time . | . . . Total Robot Build Rating . | . . . Part Schematics Acquired 1 | . . 1 Parts Built . | . . . Authchips . | . . . Time . | . . . Total Part Build Rating . | . . . Part Studies Acquired 4 | . . 4 Parts Repaired 2 | . 2 . Time 64 | . 64 . Parts Recycled . | . . . Recycled Matter . | . . . Retrieved Matter . | . . . Retrieved Components . | . . . Parts Scanalyzed 1 | . . 1 Part Schematics Acquired 1 | . . 1 Parts Damaged . | . . . Bothacking | -11 -10 -9 ------------ Run | Yrd Mat Mat Used RIF Installer . | . . . Robots Hacked . | . . . Non-combat . | . . . Combat . | . . . Robot Hacks Applied . | . . . Relay Couplers Released . | . . . Fabnet Peak Effective % . | . . . Robots Rewired . | . . . Allies Hacked . | . . . Hacks Repelled . | . . . Allies | -11 -10 -9 -------- Run | Yrd Mat Mat Total Allies . | . . . Largest Group . | . . . Highest-Rated Group . | . . . Highest-Rated Ally . | . . . Total Orders . | . . . Ally Attacks . | . . . Total Damage . | . . . Kills . | . . . Allies Corrupted . | . . . Allies Melted . | . . . Intel | -11 -10 -9 ------- Run | Yrd Mat Mat Active Infowar (turns) 572 | 102 293 177 Terrain 553 | 102 293 158 Structural 177 | . . 177 Seismic 157 | . . 157 Robot Analysis Total . | . . . Derelict Logs Recovered . | . . . Drone Launches . | . . . Drone Recoveries . | . . . Exploration | -11 -10 -9 ------------- Run | Yrd Mat Mat Turns Passed 657 | 132 331 194 Spaces Moved 356 | 25 173 158 Core 3 | . . 3 Treads . | . . . Legs 90 | 25 65 . Wheels 263 | . 108 155 Hover . | . . . Flight . | . . . Fastest Speed 50 | 120 100 50 Average Speed 101 | 120 107 92 Slowest Speed 120 | 120 120 100 Overloaded Moves . | . . . Propulsion Burnouts . | . . . Robots Hopped . | . . . Potential Cave-ins . | . . . Cave-ins Triggered . | . . . Exploration Rate (%) 18 | 2 36 18 Regions Visited 2 Branch Regions . Pre-discovered Areas . | . . . Known Exits Taken . | . . . Unknown Exits Taken 2 | 1 1 . Scrap Searched . | . . . Spaces Dug . | . . . Terrain Destroyed . | . . . Melee . | . . . Projectile . | . . . AOE . | . . . Terrain Rammed . | . . . Walls Destroyed . | . . . Machines Disabled . | . . . Actions | -11 -10 -9 --------- Run | Yrd Mat Mat Total 582 | 89 290 203 Wait 113 | 39 70 4 Move 354 | 24 172 158 Hop . | . . . Pick Up 14 | 3 8 3 Fast Attach 2 | 1 1 . Attach 4 | . . 4 Detach . | . . . Swap 8 | . 5 3 Drop 14 | 1 8 5 Fire 42 | 21 16 5 Melee . | . . . Ram 21 | . . 21 Kick 10 | . 10 . Crush . | . . . Escape Stasis . | . . . Rewire . | . . . Trap . | . . . Miscellaneous . | . . . Route ------- -11/Scrapyard -10/Materials -9/Materials History --------- Turn | Location | Event 4 | -11/Scrapyard | Discovered new exit (range 3) 133 | -11/Scrapyard | Entered Materials 181 | -10/Materials | Repaired Imp. Terrain Scanner 209 | -10/Materials | Repaired Com. Wheel 347 | -10/Materials | Build established: Mutant 448 | -10/Materials | Discovered new exit (range 7) 464 | -10/Materials | Entered another Materials area 464 | -9/Materials | Evolved 2 slots: Utility x2 650 | -9/Materials | Core integrity fell below 50% 656 | -9/Materials | Core integrity fell below 20% 658 | -9/Materials | Destroyed by Y-45 Defender with Beam Rifle Last Messages --------------- 00621_ Destroyed Flight Unit. 00622_ Terrain Scanner destroyed. 00623_ Med. Laser+ destroyed. 00624_ Seismic Detector destroyed. 00629_ Com. Wheel+ destroyed. 00636_ Slammed into S-10 Pest. 00636_ Ion Engine+ broken. 00636_ Destabilizing: Short circuit. 00637_ Slammed into S-10 Pest. 00640_ Broken Ion Engine+ destroyed. 00640_ Slammed into S-10 Pest. 00641_ Structural Scanner broken. 00641_ Destabilizing: Short circuit. 00642_ Slammed into S-10 Pest. 00643_ Broken Structural Scanner destroyed. 00643_ System corrupted by crushing effect (+1). 00644_ Slammed into S-10 Pest. 00651_ Destabilizing: System corrupted (+1). 00652_ System corrupted: Energy discharge (-21). 00653_ Slammed into Y-45 Defender. Map ----- +----------------------------------------------------+ | | | | | | | | | | | | | | | | | | | | | | | | | | | | | | | | | ??????????????################???????????????????? | | ??????????????## ############?????????? | | ??????????????## ############?????????? | | ??????????????## ####!!!!!!###????????? | | ??????????????## ####! !!!!##?????????? | | ??????????????## #### ##?????????? | | ???????????###########+######### ###### ##???? | | ???????????######### s ####### ###### ##???? | | ???????????## Y s =% ##???? | | ???????????## =[ T @ " ##???? | | ???????????## Y # ???? | | ???????????######### ####### ######## ???? | | ???????????###########+########## ######### ???? | | ??????????????### ##### ###?????? ### | | ???????????????## " """"" ##?## ########? ### | | ???????????????## """"""""" ##?## ####### [# | | ????????#??????## """ """ ##?## # | | ???????????????## ##?## / | | #?????#????????## = ##?## # | | ##########?????## = ##?## ####### # | | ###########################+##### ####### ?#### | | " ################### ##### ##???????#### | | " ]#### ## ##### ##???????????? | | " ### """ """ """ # ##????#????#?? | | #### """ """ """ + ##???#???????? | | #### """ """ """ # ####### ?????? | | "T" #### # ############## ????#? | | ?#?## # # # ?????? | | ##/##########+############ # # ?????? | | ######## ############ + """" # ?????? | | # """" "" # ?????? | | # """" S"" # #????? | | # "" # ?????? | | #################+#################### ?????? | +----------------------------------------------------+ Best States ------------- Heat Dissipation 28 Energy Generation 12 Energy Capacity 250 Matter Stores 300 Matter Capacity 300 Sight Range 16 Terrain Scan Range 16 Terrain Scan Density 10 Evasion (%) 55 Item Schematics ----------------- Com. Wheel | -9/Materials | Scanalyzed Robot Schematics ------------------ None Fabricated ------------ Nothing Repaired ---------- Imp. Terrain Scanner | 86% | -10/Materials Com. Wheel | 83% | -10/Materials Studied --------- Com. Wheel | -9/Materials | Hacked Med. Laser | -9/Materials | Hacked Ion Engine | -9/Materials | Hacked Lgt. Assault Rifle | -9/Materials | Hacked Alien Tech Used ----------------- None Achievements -------------- None Challenges ------------ None Game ------ Seed CloakRelayCompactor Manual? 0 Play Time 00:11:43 Cumulative 110.6 hours Start 2025.10.22 @ 19:31:07 End 2025.10.23 @ 10:40:27 Sessions 1 Manual Loads 0 Difficulty Rogue Special Mode None Game No. 191 Rogue 145 Adventurer 45 Explorer 1 Win Type - Total 0 Types 0/0/0/0/0/0/0/0/0/0 Lore% 21 Gallery% 42 Achievement% 22 Wizard Run 0 Options --------- Layout 2 ASCII 0 Keyboard 0 Movement Mouse Keybinds 0 Fullscreen 1 Font 32/SmallcapsGlow Map View 50x44 Zoom Use 0% Tactical HUD 1 Map Filters NONE Filters LOW_CONTRAST(13,24,33)|BRIGHTNESS(90)|SATURATION(87) Steam 1 RUN: 06595b42-e013-4e4a-a212-5d03ffb89c50